bitfinex-derivatives/quotes_ETHF0:USTF0_20260303
["timestamp","ask_amount","ask_price","bid_price","bid_amount"]
[1772509259023,15.86224451,2011.2,2010.5,0.86807548]
[1772509262028,1.08043171,2011.1,2010.5,0.86807548]
[1772509262326,8.27207211,2011.2,2010.5,0.86807548]
[1772509262528,14.78407211,2011.2,2010.5,0.86807548]
[1772509262724,9.35479147,2011.2,2010.5,0.86807548]
[1772509262918,15.86679147,2011.2,2010.5,0.86807548]
[1772509263126,1.08271936,2011.1,2010.5,0.86807548]
[1772509264628,15.86861601,2011.2,2010.5,0.86807548]
[1772509264828,9.35661601,2011.2,2010.5,0.86807548]
[1772509265128,15.86861601,2011.2,2010.5,0.86807548]
[1772509265331,1.0845439,2011.1,2010.5,0.86807548]
[1772509265731,15.86865564,2011.2,2010.5,0.86807548]
[1772509266031,0.00449732,2011.3,2010.6,0.75361683]
[1772509266228,0.00449732,2011.3,2010.8,0.02125266]
[1772509267631,1.46152135,2011.6,2010.8,0.02125266]
[1772509268223,6.512,2011.9,2010.8,0.02125266]
[1772509268224,1.46390659,2011.9,2010.8,0.02125266]
[1772509268529,1.46390659,2011.9,2010.6,6.76071]
[1772509268530,8.98236187,2011.8,2011.2,0.10994992]
[1772509268725,1.47882181,2011.7,2010.7,0.08011947]
[1772509273733,7.51845528,2011.6,2010.7,0.08011947]
[1772509273934,8.99407118,2011.6,2010.7,0.08011947]
[1772509275339,1.47613973,2011.5,2010.7,0.08011947]
[1772509276539,1.47623845,2011.3,2010.7,0.08011947]
[1772509276739,1.47623845,2011.3,2010.6,6.74205363]
[1772509277036,1.47768027,2011.1,2010.6,6.74205363]
[1772509277237,1.47768027,2011.1,2010.7,0.246736]
[1772509277638,9.08699237,2011.0,2010.7,0.246736]
[1772509277835,1.56853709,2011.0,2010.6,6.77537513]
[1772509278035,1.56853709,2010.9,2010.6,6.77537513]
[1772509278435,1.49510565,2010.7,2010.4,0.32278438]
[1772509278637,1.49510565,2010.7,2010.4,0.00613864]
[1772509279342,1.51025136,2010.6,2010.4,0.00613864]
[1772509279741,1.51025136,2010.6,2010.2,6.80059394]
[1772509279941,1.51025136,2010.6,2010.2,6.79942929]
[1772509280642,1.51083368,2011.4,2010.3,0.35130289]
[1772509280842,1.5106358,2011.3,2010.3,0.35130289]
[1772509281741,7.40989857,2011.2,2010.7,0.36591147]
[1772509282036,7.40989857,2011.2,2010.6,6.11857]
[1772509282037,1.69745304,2011.9,2011.1,0.01389779]
[1772509282838,1.69745304,2011.9,2010.8,6.53862017]
[1772509283035,1.68745794,2011.8,2010.8,6.512]
[1772509283243,1.68745794,2011.8,2010.8,7.11114747]
[1772509283643,1.68745794,2011.8,2010.9,0.47446818]
[1772509287146,1.68745794,2011.8,2010.5,0.64548068]
[1772509291747,1.49510565,2011.6,2010.5,0.64548068]
[1772509291945,1.49510565,2011.4,2010.5,0.64548068]
[1772509292447,1.49510565,2011.4,2010.4,6.512]
[1772509292841,1.49510565,2011.4,2010.3,1.20951676]
[1772509295950,1.49510565,2010.8,2009.6,1.22619726]
[1772509296150,1.49510565,2010.7,2009.6,1.47503726]
[1772509296951,1.49510565,2010.7,2009.6,1.47940308]
[1772509297654,1.49510565,2010.7,2009.9,1.24092143]
[1772509297953,1.49510565,2010.7,2010.0,1.24092143]
[1772509298349,1.49510565,2011.2,2010.0,1.24092143]
[1772509301049,1.49510565,2011.2,2010.2,1.3147385]
[1772509302659,1.49510565,2011.2,2010.2,1.5634985]
[1772509312461,1.49510565,2011.2,2010.4,1.36200189]
[1772509318167,1.49510565,2011.2,2010.2,1.3537195]
[1772509320258,1.49510565,2011.2,2010.7,1.35251057]
[1772509322570,1.49510565,2011.2,2010.5,1.37249901]
[1772509327176,1.49510565,2011.2,2010.4,7.95586548]
[1772509327378,1.49510565,2011.2,2010.5,1.36038166]
[1772509331478,1.44286548,2011.1,2010.5,1.36038166]
[1772509331685,2.05563664,2011.0,2010.4,6.513]
[1772509331876,2.05563664,2011.0,2010.4,7.87062457]
[1772509332577,2.05563664,2011.0,2010.0,1.44286548]
[1772509332578,2.05563664,2010.7,2010.1,6.513]
[1772509332782,2.05563664,2010.7,2010.1,1.36129325]
[1772509334182,2.05563664,2010.7,2009.9,1.36032092]
[1772509340591,2.05563664,2010.7,2010.1,1.39514528]
[1772509341294,2.05563664,2010.7,2010.2,2.82146507]
[1772509341490,2.05563664,2010.7,2010.2,1.37859959]
[1772509346794,2.05563664,2010.7,2010.0,2.80791056]
[1772509347000,1.98841456,2010.6,2009.9,1.36504508]
[1772509347195,1.98841456,2010.6,2010.0,2.80512366]
[1772509351298,1.98841456,2010.4,2009.8,6.513]
[1772509351500,1.99396094,2010.4,2009.7,2.79728311]
[1772509352903,1.99396094,2010.4,2009.7,1.35441763]
[1772509353112,1.99396094,2010.4,2009.8,2.79092537]
[1772509355402,1.99396094,2010.4,2009.7,1.35653893]
[1772509355606,1.99396094,2010.4,2009.6,7.9602313]
[1772509355811,1.99396094,2010.4,2009.6,9.3168502]
[1772509356407,1.98841456,2010.2,2009.6,6.51736582]
[1772509356714,1.98841456,2010.2,2009.6,1.35716265]
[1772509358608,1.98841456,2010.2,2009.6,0.00436582]
[1772509358813,1.98841456,2009.7,2009.1,1.3617997]
[1772509359109,1.98841456,2009.7,2009.2,1.35766468]
[1772509359310,0.25429638,2010.4,2009.4,1.35766468]
[1772509359311,1.98841456,2009.9,2009.4,1.35766468]
[1772509359710,1.98841456,2009.9,2009.4,1.36342864]
[1772509361113,1.98841456,2009.9,2009.4,0.00576396]
[1772509362014,1.98841456,2009.9,2009.4,1.33610174]
[1772509366416,1.98841456,2009.9,2009.4,0.00576396]
[1772509367017,1.98841456,2009.9,2009.4,1.31111737]
[1772509368521,1.98841456,2009.9,2009.4,0.00576396]
[1772509369021,1.44286548,2010.0,2009.1,6.514]
[1772509369022,2.09239609,2009.7,2009.1,6.514]
[1772509369218,2.09239609,2009.7,2009.1,7.81914303]
[1772509369518,2.09239609,2009.7,2009.2,1.30514303]
[1772509370120,2.09239609,2009.7,2009.2,1.30869664]
[1772509371423,2.09239609,2010.1,2009.4,1.29495068]
[1772509372623,2.09239609,2010.1,2009.8,1.2929649]
[1772509375115,0.00554638,2010.4,2009.8,1.2929649]
[1772509375116,2.09239609,2010.3,2009.8,1.2929649]
[1772509375321,2.09239609,2010.3,2009.9,1.91766429]
[1772509375522,2.09239609,2010.3,2010.0,1.91766429]
[1772509375721,2.09239609,2010.3,2009.9,3.36052977]
[1772509376528,2.09239609,2010.3,2010.0,1.91766429]
[1772509376723,2.08625735,2010.3,2010.0,1.91766429]
[1772509377323,2.08625735,2010.3,2009.9,3.36052977]
[1772509377722,0.00554638,2010.4,2010.1,1.44286548]
[1772509378024,2.09794247,2010.4,2010.1,3.36052977]
[1772509378225,2.09794247,2010.4,2010.1,1.91766429]
[1772509379722,0.00554638,2010.4,2010.1,3.36052977]
[1772509380024,2.09794247,2010.4,2010.1,1.91766429]
[1772509380226,0.00554638,2010.4,2010.1,1.91766429]
[1772509380427,2.09794247,2010.4,2010.1,1.91766429]
[1772509380724,2.09794247,2010.4,2010.0,1.91766429]
[1772509384735,2.09794247,2010.4,2009.6,6.514]
[1772509384736,2.09239609,2010.3,2009.7,1.91766429]
[1772509385033,2.09239609,2010.3,2009.8,1.44286548]
[1772509385235,2.09239609,2010.3,2009.9,1.91766429]
[1772509385831,0.00554638,2010.4,2010.1,1.91766429]
[1772509386032,2.09794247,2010.4,2010.1,1.91766429]
[1772509387438,2.09794247,2010.4,2010.0,3.36052977]
[1772509388433,2.09794247,2010.4,2010.0,1.91766429]
[1772509390145,2.09239609,2010.9,2010.0,1.91766429]
[1772509391040,2.09592285,2010.9,2010.0,1.91766429]
[1772509391843,2.09592285,2010.9,2010.2,1.91766429]
[1772509393645,2.09592285,2010.9,2010.0,1.91766429]
[1772509393847,2.09239609,2010.7,2010.0,1.91766429]
[1772509406149,2.09239609,2010.7,2009.6,6.514]
[1772509406348,2.04484707,2010.6,2009.7,1.90732569]
[1772509407651,2.04484707,2010.6,2010.0,1.44370087]
[1772509407857,2.04837383,2010.9,2010.5,1.90732569]
[1772509408251,0.00352676,2010.9,2010.5,1.90732569]
[1772509413465,2.04484707,2011.8,2010.9,1.90732569]
[1772509413666,2.04484707,2011.8,2011.1,1.90732569]
[1772509414364,2.04986619,2011.8,2011.1,1.91298533]
[1772509423376,2.04986619,2011.8,2011.2,1.44370087]
[1772509423572,2.04986619,2011.8,2011.3,1.90732569]
[1772509426281,2.04484707,2011.9,2011.5,1.90732569]
[1772509426483,2.04484707,2012.6,2011.7,1.90732569]
[1772509427381,2.05005952,2012.6,2011.7,1.90732569]
[1772509428079,2.05005952,2012.6,2011.4,7.95770087]
[1772509428080,2.05005952,2012.6,2011.5,1.84184875]
[1772509429480,1.7587237,2012.4,2011.5,1.84184875]
[1772509430280,1.7587237,2012.4,2011.4,6.514]
[1772509430484,1.7587237,2012.2,2011.4,8.35584875]
[1772509430683,1.7587237,2012.2,2011.5,1.84184875]
[1772509432685,1.7587237,2012.2,2011.4,8.35584875]
[1772509433284,1.7587237,2012.2,2011.5,1.84184875]
[1772509437190,1.7587237,2012.2,2011.4,1.84184875]
[1772509441190,1.7587237,2012.0,2011.3,1.84184875]
[1772509441692,1.7587237,2012.0,2011.2,1.84184875]
[1772509445893,1.7587237,2012.0,2011.1,1.84750839]
[1772509447696,0.24853,2012.2,2011.1,0.00565964]
[1772509447697,1.7587237,2011.6,2011.1,0.00565964]
[1772509448198,1.7587237,2011.6,2011.1,1.84750839]
[1772509448592,3.20067708,2012.0,2011.1,3.28946177]
[1772509448785,1.7587237,2011.9,2011.2,1.84184875]
[1772509451494,1.7587237,2011.7,2011.2,1.84184875]
[1772509452995,1.7587237,2011.9,2011.4,1.44195338]
[1772509453299,1.7587237,2012.3,2011.8,1.84184875]
[1772509459702,1.7587237,2012.3,2011.6,3.20351531]
[1772509460003,1.7587237,2012.3,2011.7,1.76156193]
[1772509473710,1.7587237,2012.3,2011.9,1.76156193]
[1772509474717,1.73565986,2012.4,2012.1,1.76156193]
[1772509475110,1.73565986,2012.4,2012.0,1.76156193]
[1772509476613,1.74087231,2012.6,2012.0,1.76156193]
[1772509483416,1.74087231,2012.6,2012.1,1.76156193]
[1772509484623,1.74087231,2012.6,2012.3,1.76156193]
[1772509485020,0.00521245,2012.6,2012.3,1.76156193]
[1772509485323,1.73565986,2012.8,2012.3,1.76156193]
[1772509486224,1.74054853,2012.8,2012.3,1.76156193]
[1772509487319,1.74054853,2012.8,2012.1,1.76156193]
[1772509487520,1.63852362,2012.7,2012.1,1.76156193]
[1772509492429,1.63852362,2012.1,2011.7,1.63327141]
[1772509492629,1.63852362,2012.3,2011.7,1.63327141]
[1772509505135,1.63852362,2012.0,2011.5,1.63327141]
[1772509506439,1.63852362,2012.0,2011.3,6.512]
[1772509506637,1.63852362,2012.0,2011.4,1.63327141]
[1772509507441,1.63852362,2011.6,2011.1,1.63893105]
[1772509509943,1.63852362,2011.7,2011.2,1.63327141]
[1772509510138,1.63852362,2012.0,2011.4,1.63327141]
[1772509519652,1.52277981,2011.9,2011.1,1.49425256]
[1772509520553,1.52277981,2011.7,2011.1,1.49425256]
[1772509520749,1.52277981,2011.7,2011.1,0.00565964]
[1772509526060,1.52277981,2011.7,2010.8,1.48859292]
[1772509527162,1.52277981,2011.7,2010.8,1.49287343]
[1772509533868,1.52277981,2011.7,2011.0,1.48859292]
[1772509536569,1.52277981,2011.7,2010.9,1.48859292]
[1772509538162,1.52277981,2011.7,2010.9,2.93025522]
[1772509538366,1.52277981,2011.7,2011.0,1.48859292]
[1772509540366,1.52277981,2011.7,2010.8,0.00428051]
[1772509540571,1.52277981,2011.7,2010.1,15.43048424]
[1772509540572,1.52277981,2011.4,2010.5,1.48859292]
[1772509540864,6.514,2011.7,2011.0,1.48859292]
[1772509540865,1.52277981,2011.7,2011.0,1.48859292]
[1772509541062,1.52277981,2011.7,2011.2,1.48859292]
[1772509541466,1.52277981,2011.7,2011.2,1.4946995]
[1772509545173,1.4416623,2012.3,2011.2,1.4946995]
[1772509545174,1.52277981,2012.2,2011.2,1.4946995]
[1772509547277,1.52277981,2012.2,2011.4,1.48859292]
[1772509555382,1.52277981,2012.2,2011.2,0.00610658]
[1772509555383,1.52277981,2012.2,2011.6,1.41514167]
[1772509555577,1.52277981,2012.2,2011.5,1.4416623]
[1772509555578,1.52277981,2012.2,2011.8,1.41514167]
[1772509555778,1.44521596,2012.4,2011.8,1.41514167]
[1772509557078,1.44521596,2012.4,2011.6,1.41514167]
[1772509563087,1.44521596,2012.4,2011.4,9.37080397]
[1772509563287,1.44521596,2012.4,2011.5,1.41514167]
[1772509566688,1.44521596,2012.7,2011.9,1.41514167]
[1772509567885,1.44521596,2012.5,2011.6,1.41514167]
[1772509572587,1.44521596,2012.3,2011.6,1.41514167]
[1772509574497,1.44521596,2012.1,2011.5,1.35719175]
[1772509577996,1.44132384,2012.5,2011.4,7.75801452]
[1772509577997,1.2083463,2011.9,2011.4,7.75801452]
[1772509578697,1.2083463,2011.9,2011.5,1.22923811]
[1772509581494,1.30810874,2012.1,2011.6,1.22923811]
[1772509582902,1.30810874,2011.7,2011.4,6.514]
[1772509588599,1.30810874,2011.7,2011.4,7.74323811]
[1772509589608,1.30810874,2011.7,2011.2,0.00610658]
[1772509589808,1.30810874,2011.7,2011.3,6.513]
[1772509590202,1.30810874,2011.7,2011.2,0.00610658]
[1772509590402,1.30810874,2011.7,2011.3,6.513]
[1772509590908,1.30810874,2011.7,2011.3,7.74223811]
[1772509591300,1.30810874,2011.7,2011.4,1.22923811]
[1772509591504,1.30810874,2011.7,2011.3,7.74223811]
[1772509592808,1.30810874,2011.7,2011.3,6.513]
[1772509592998,1.44132384,2011.5,2011.2,0.00610658]
[1772509593199,1.30810874,2011.4,2011.1,6.514]
[1772509593908,1.30810874,2011.4,2011.0,6.514]
[1772509594109,1.30810874,2011.4,2011.0,7.74732198]
[1772509598816,1.30810874,2011.2,2010.9,6.31384949]
[1772509599115,1.30810874,2011.2,2010.8,6.514]
[1772509599914,1.31278441,2011.2,2010.8,6.51877235]
[1772509601816,1.30810874,2011.0,2010.8,0.00477235]
[1772509602114,1.30810874,2011.0,2010.7,6.514]
[1772509602314,1.30810874,2011.0,2010.5,1.22727005]
[1772509602514,1.30810874,2011.0,2010.6,7.7333519]
[1772509602917,1.30810874,2011.0,2010.6,7.7389351]
[1772509603113,1.30810874,2011.0,2010.7,1.2214995]
[1772509603618,1.30810874,2011.0,2010.6,7.73351837]
[1772509604420,1.30810874,2011.0,2010.7,1.20601256]
[1772509604717,1.30810874,2011.0,2010.6,7.72559576]
[1772509606018,1.30810874,2010.8,2010.3,1.20296579]
[1772509606213,1.30810874,2010.8,2010.4,6.514]
[1772509606418,1.30810874,2010.8,2010.3,1.20296579]
[1772509606419,1.30810874,2010.6,2010.0,1.19512781]
[1772509606719,1.30810874,2010.6,2010.1,1.19512781]
[1772509607120,1.30810874,2010.6,2010.1,7.71385874]
[1772509607521,1.30810874,2010.6,2010.2,1.12311829]
[1772509607719,1.30810874,2010.6,2010.1,7.64184922]
[1772509608520,1.30810874,2010.6,2010.1,1.12784922]
[1772509609617,1.2169037,2010.4,2010.1,0.00473093]
[1772509609819,1.2169037,2010.4,2009.7,1.44132384]
[1772509609820,1.2169037,2010.4,2010.0,7.63711829]
[1772509610020,1.2169037,2010.6,2010.0,1.12311829]
[1772509610419,1.2169037,2010.6,2010.2,1.12311829]
[1772509610618,1.2169037,2010.8,2010.2,1.12311829]
[1772509610912,1.2169037,2010.8,2010.2,1.12804961]
[1772509611113,1.2169037,2010.6,2010.2,0.00493132]
[1772509611317,1.2169037,2010.6,2010.2,1.12804961]
[1772509614720,1.2169037,2010.9,2010.4,1.12311829]
[1772509617523,1.2169037,2011.1,2010.4,1.12311829]
[1772509620028,1.2169037,2010.9,2010.4,1.12311829]
[1772509621027,1.2169037,2010.5,2010.2,0.00493132]
[1772509621924,1.2169037,2010.5,2010.1,1.07957715]
[1772509623023,1.2169037,2010.5,2010.1,1.08546423]
[1772509623223,1.2169037,2010.7,2010.4,1.05754852]
[1772509627628,1.2169037,2010.7,2010.1,0.00588708]
[1772509627828,1.2169037,2010.5,2010.1,0.00588708]
[1772509628021,1.2169037,2010.5,2010.1,1.02948029]
[1772509628422,1.2169037,2010.5,2010.1,0.00588708]
[1772509628626,1.2169037,2010.5,2010.0,6.514]
[1772509628935,1.2169037,2010.5,2010.0,7.52978651]
[1772509629528,1.2169037,2010.5,2010.0,7.53442409]
[1772509632036,1.2169037,2010.5,2010.0,7.51304894]
[1772509633434,1.2169037,2010.5,2010.0,6.51863758]
[1772509633635,1.2169037,2010.5,2010.0,0.00463758]
[1772509633835,0.24869,2010.9,2009.7,7.49295605]
[1772509633836,1.2169037,2010.3,2009.7,7.49295605]
[1772509634433,1.2169037,2010.1,2009.4,7.48567395]
[1772509634833,1.2169037,2010.1,2009.4,6.52032847]
[1772509635142,1.2169037,2009.9,2009.4,6.52032847]
[1772509635641,1.2169037,2009.9,2009.4,0.00632847]
[1772509639039,2.66086649,2009.9,2009.1,0.93021352]
[1772509639239,1.07107998,2009.8,2009.1,0.93021352]
[1772509640046,1.07107998,2009.8,2009.1,0.93409694]
[1772509644443,1.07107998,2009.6,2009.1,0.00388342]
[1772509644642,1.07472098,2009.6,2009.1,0.00388342]
[1772509645738,1.07472098,2009.6,2009.1,0.90151118]
[1772509646240,1.07472098,2009.6,2009.1,0.00388342]
[1772509648144,1.07472098,2009.6,2009.1,0.88740725]
[1772509651744,1.07472098,2009.6,2009.1,0.00388342]
[1772509651948,1.07472098,2009.6,2008.8,0.85775357]
[1772509652953,1.07472098,2009.6,2008.8,0.86180517]
[1772509655557,1.07472098,2009.6,2009.0,0.83100173]
[1772509655952,1.07472098,2009.6,2008.8,0.83506804]
[1772509656158,1.07107998,2009.5,2008.8,0.0040516]
[1772509656354,1.07107998,2009.3,2008.8,0.0040516]
[1772509658156,1.07107998,2009.3,2008.8,0.82233714]
[1772509661154,1.07107998,2009.4,2008.8,0.82233714]
[1772509664160,0.003641,2009.6,2008.8,0.82233714]
[1772509664360,1.07472098,2009.6,2008.8,0.82233714]
[1772509672371,1.07472098,2009.6,2008.8,0.0040516]
[1772509672670,1.07472098,2009.6,2008.8,0.7552858]
[1772509680971,1.07472098,2009.6,2008.8,0.0040516]
[1772509684673,1.07472098,2009.6,2008.8,0.65031018]
[1772509686377,1.07472098,2009.6,2008.8,0.0040516]
[1772509689473,1.07472098,2009.6,2008.8,0.61547268]
[1772509692480,1.02193431,2009.5,2008.8,0.61547268]
[1772509693476,1.02193431,2008.8,2007.9,2.03629244]
[1772509693681,1.02193431,2008.6,2008.0,0.59088021]
[1772509693879,1.02193431,2008.4,2007.8,0.59088991]
[1772509694478,1.02193431,2008.4,2007.8,0.59684964]
[1772509697477,1.02193431,2008.4,2007.8,0.00595973]
[1772509699084,0.904041,2008.3,2007.1,0.57125143]
[1772509699984,0.904041,2008.3,2007.1,0.57664754]
[1772509700681,0.904041,2008.3,2007.1,0.51664754]
[1772509702191,0.904041,2008.1,2007.1,0.51136208]
[1772509702389,0.90795902,2008.1,2007.1,0.51136208]
[1772509707491,0.90795902,2008.1,2007.2,0.48146474]
[1772509712793,0.904041,2008.2,2007.5,0.44261559]
[1772509713901,0.90906709,2008.2,2007.5,0.44261559]
[1772509715905,0.90906709,2008.2,2007.4,0.40992699]
[1772509716600,0.90906709,2008.2,2007.8,0.40416621]
[1772509716800,0.90906709,2008.2,2007.7,1.84787482]
[1772509717201,0.90906709,2008.2,2007.8,0.39522363]
[1772509717500,0.90906709,2008.2,2007.9,1.44690806]
[1772509717706,0.904041,2008.3,2008.0,0.84302739]
[1772509718006,0.904041,2008.3,2007.9,2.28993545]
[1772509718699,0.90779698,2008.3,2007.9,2.28993545]
[1772509718898,0.90779698,2008.3,2008.0,0.84302739]
[1772509719497,0.24895,2008.8,2007.5,1.44690806]
[1772509719498,0.904041,2008.8,2008.2,0.84302739]
[1772509719705,0.904041,2008.8,2008.1,1.44690806]
[1772509719901,0.904041,2008.8,2008.1,2.28993545]
[1772509720503,0.90965991,2008.8,2008.1,2.28993545]
[1772509720908,0.90965991,2008.8,2008.2,0.84302739]
[1772509723007,0.90965991,2008.8,2008.4,0.84302739]
[1772509724010,0.904041,2009.1,2008.7,2.28993545]
[1772509724214,0.904041,2009.5,2008.9,1.44690806]
[1772509724416,0.904041,2009.3,2008.6,0.84302739]
[1772509725013,0.90855791,2009.3,2008.6,0.84754021]
[1772509734216,0.00451691,2009.3,2008.6,0.84754021]
[1772509734420,0.7672814,2009.6,2008.9,0.83619373]
[1772509735524,0.77256647,2009.6,2008.7,0.83619373]
[1772509741524,0.77256647,2009.6,2008.6,0.00451282]
[1772509741724,0.77256647,2009.6,2008.6,0.84070655]
[1772509743330,0.77256647,2009.6,2008.9,0.83619373]
[1772509743828,0.77256647,2009.6,2008.7,0.83619373]
[1772509746528,0.7672814,2009.4,2008.7,0.83619373]
[1772509748630,0.7672814,2009.4,2008.9,0.83619373]
[1772509748830,0.7672814,2009.5,2009.1,0.83619373]
[1772509749035,0.7672814,2009.5,2008.8,1.44560612]
[1772509749234,0.7672814,2009.5,2008.9,0.83619373]
[1772509749533,0.7672814,2009.4,2008.7,0.83619373]
[1772509753235,1.44560612,2009.5,2008.6,0.84070655]
[1772509753236,0.7672814,2009.2,2008.6,0.84070655]
[1772509753634,0.7672814,2009.2,2008.7,0.83619373]
[1772509754328,0.7672814,2009.0,2008.6,0.00451282]
[1772509761040,0.7672814,2009.0,2008.3,0.58850357]
[1772509761937,0.7672814,2009.0,2008.2,0.58850357]
[1772509762241,0.7672814,2009.0,2008.2,0.59487415]
[1772509763535,0.59932892,2009.3,2008.4,0.58850357]
[1772509763940,0.59932892,2009.2,2008.4,0.58850357]
[1772509764443,0.59932892,2009.1,2008.2,0.59487415]
[1772509774752,0.59932892,2009.0,2008.2,0.59487415]
[1772509775552,0.59932892,2009.0,2008.2,0.00637058]
[1772509776951,0.59932892,2009.0,2008.2,0.59487415]
[1772509777751,0.59932892,2009.0,2008.2,0.00637058]
[1772509777955,0.59932892,2009.0,2007.9,0.58850357]
[1772509777956,0.59932892,2008.8,2007.9,0.58850357]
[1772509779048,0.59932892,2008.8,2007.9,0.59440913]
[1772509779554,0.59932892,2008.8,2008.0,0.58850357]
[1772509791252,0.59932892,2008.8,2007.9,0.00590556]
[1772509791253,0.59932892,2008.8,2008.2,0.57184215]
[1772509792262,0.59932892,2008.8,2008.0,0.57184215]
[1772509802471,0.59932892,2008.8,2008.2,0.57184215]
[1772509803574,0.56207118,2009.0,2008.2,0.57184215]
[1772509804577,0.56207118,2009.0,2008.0,0.57184215]
[1772509805374,0.56207118,2009.0,2008.2,0.57184215]
[1772509814582,0.56207118,2009.0,2008.3,0.57184215]
[1772509822382,0.59361557,2009.2,2008.5,0.57022888]
[1772509822589,0.59361557,2009.2,2008.8,0.57022888]
[1772509823481,0.59361557,2009.5,2009.2,0.57022888]
[1772509823683,0.59361557,2009.5,2009.1,2.01627259]
[1772509824877,0.59361557,2009.5,2008.5,1.44604371]
[1772509824878,0.59361557,2009.5,2008.9,2.01627259]
[1772509825087,0.59361557,2009.4,2008.8,0.57022888]
[1772509825287,0.59361557,2009.2,2008.6,0.57022888]
[1772509827486,0.59361557,2009.2,2008.5,0.57022888]
[1772509827682,0.59361557,2009.0,2008.5,0.57022888]
[1772509830495,0.59361557,2009.0,2008.4,0.57022888]
[1772509836695,0.59361557,2009.0,2008.1,1.44604371]
[1772509836696,0.59361557,2008.6,2008.1,0.57022888]
[1772509839198,0.59361557,2008.7,2008.1,0.57022888]
[1772509839493,0.59361557,2008.8,2008.1,0.57022888]
[1772509840999,0.59361557,2008.8,2007.8,0.24906]
[1772509841000,0.59361557,2008.4,2007.9,0.57613444]
[1772509843596,0.59361557,2008.5,2007.9,0.57613444]
[1772509843801,0.59361557,2008.5,2008.1,0.57022888]
[1772509845199,0.59361557,2008.8,2008.1,0.57022888]
[1772509845601,1.44604371,2008.7,2008.1,0.57022888]
[1772509845803,0.59361557,2008.6,2008.1,0.57022888]
[1772509851808,0.56368707,2008.4,2007.9,0.56633838]
[1772509852408,0.56368707,2008.4,2007.9,0.00590556]
[1772509853905,0.56368707,2008.4,2007.9,0.56633838]
[1772509854912,0.56368707,2008.4,2007.9,0.00590556]
[1772509855404,0.56368707,2008.4,2007.9,0.56633838]
[1772509856111,0.56368707,2008.4,2007.9,0.00590556]
[1772509857010,1.44604371,2008.3,2007.9,0.00590556]
[1772509857211,0.56368707,2008.2,2007.9,0.00590556]
[1772509857411,0.56368707,2008.2,2007.8,0.56043282]
[1772509858511,0.56368707,2008.2,2007.8,0.56469867]
[1772509859409,0.56368707,2008.4,2007.9,0.56043282]
[1772509860209,0.56368707,2008.4,2007.8,0.00426585]
[1772509860612,0.56368707,2007.8,2007.3,0.56043282]
[1772509861611,0.57008385,2007.8,2007.3,0.56568902]
[1772509863711,0.57008385,2007.8,2007.1,0.56043282]
[1772509864814,0.57008385,2007.8,2007.1,0.56577682]
[1772509865015,0.56368707,2007.6,2007.1,0.56577682]
[1772509868614,0.56368707,2007.6,2007.1,0.005344]
[1772509868815,0.56368707,2007.6,2007.1,0.56577682]
[1772509869521,0.56368707,2007.2,2006.6,0.56043282]
[1772509869717,0.56368707,2007.2,2006.7,0.56043282]
[1772509870719,0.56368707,2007.2,2006.7,0.56467107]
[1772509875426,0.56368707,2007.2,2006.7,0.00423825]
[1772509876224,0.56368707,2007.2,2006.5,6.52]
[1772509876624,0.56368707,2007.2,2006.5,7.08043282]
[1772509876825,0.56368707,2007.2,2006.5,0.56043282]
[1772509877027,0.56368707,2007.1,2006.5,0.56043282]
[1772509877327,0.56368707,2007.1,2006.5,0.00446328]
[1772509878124,0.56368707,2007.1,2006.0,6.52]
[1772509878334,0.56368707,2007.1,2006.5,0.54078062]
[1772509879324,0.56368707,2007.1,2006.5,0.54594072]
[1772509881438,0.56368707,2007.1,2006.5,0.0051601]
[1772509882029,0.56521904,2006.8,2006.1,6.52]
[1772509882526,0.56521904,2006.8,2006.2,0.55510812]
[1772509883031,0.56521904,2006.8,2006.3,0.55510812]
[1772509883233,0.56521904,2007.4,2006.5,0.55510812]
[1772509883633,0.56521904,2007.4,2006.2,0.00645779]
[1772509883634,0.56521904,2007.4,2006.3,0.55510812]
[1772509884632,0.56521904,2007.4,2006.2,7.97528585]
[1772509884633,0.56521904,2007.4,2006.5,0.55510812]
[1772509884934,0.56521904,2007.4,2006.9,0.55510812]
[1772509885233,0.56521904,2007.7,2006.9,0.55510812]
[1772509886131,0.56521904,2007.7,2007.1,0.55510812]
[1772509886332,0.56521904,2007.7,2007.3,0.55510812]
[1772509887732,0.56521904,2008.6,2007.5,0.55510812]
[1772509887932,0.56521904,2008.4,2007.5,0.55510812]
[1772509888729,0.57138869,2008.4,2007.5,0.55510812]
[1772509890036,0.56521904,2008.2,2007.3,0.55510812]
[1772509907361,0.57138869,2008.4,2007.9,0.55510812]
[1772509907559,0.57138869,2008.4,2007.9,0.55922263]
[1772509907859,0.57138869,2008.4,2007.4,0.5696899]
[1772509908659,0.57138869,2008.4,2007.4,0.5745497]
[1772509911558,0.575816,2008.2,2007.4,0.5745497]
[1772509911760,0.575816,2007.9,2007.4,0.0048598]
[1772509914756,0.575816,2007.9,2006.9,6.521]
[1772509914962,0.575816,2007.9,2007.1,0.5696899]
[1772509916060,0.575816,2007.9,2007.1,0.57447084]
[1772509918465,0.575816,2007.9,2007.1,0.00478094]
[1772509918664,0.575816,2007.9,2007.1,0.57447084]
[1772509921561,0.575816,2007.7,2006.8,0.5696899]
[1772509921762,0.575816,2007.5,2006.8,0.5696899]
[1772509922669,1.44882806,2007.6,2006.3,1.69807806]
[1772509922670,0.575816,2007.3,2006.4,0.5696899]
[1772509922863,0.575816,2007.3,2006.4,0.57500025]
[1772509926067,0.575816,2007.1,2006.4,0.57500025]
[1772509929871,0.575816,2007.2,2006.5,0.5696899]
[1772509930166,0.575816,2007.7,2006.7,0.5696899]
[1772509930372,0.575816,2007.7,2006.4,0.00531035]
[1772509930373,0.575816,2007.7,2006.9,0.5696899]
[1772509931969,6.77001,2008.3,2006.8,7.96982806]
[1772509931970,0.575816,2008.1,2007.1,0.5696899]
[1772509934974,0.575816,2008.1,2007.3,0.5696899]
[1772509935175,0.575816,2008.3,2007.5,0.5696899]
[1772509936177,0.575816,2008.3,2007.7,0.5696899]
[1772509937678,0.57247794,2008.3,2007.7,0.5696899]
[1772509938874,0.58465992,2008.4,2007.7,0.5696899]
[1772509944075,0.57849027,2008.6,2007.7,0.5696899]
[1772509944972,0.58296074,2008.6,2007.7,0.5696899]
[1772509945375,0.57849027,2008.5,2007.7,0.5696899]
[1772509945982,0.57849027,2008.5,2007.0,0.54754261]
[1772509946281,0.57849027,2008.2,2007.0,0.54754261]
[1772509952585,0.57849027,2008.0,2007.0,0.54754261]
[1772509954983,2.0836855,2008.4,2007.0,0.54754261]
[1772509954984,0.57849027,2008.4,2007.0,0.54754261]
[1772509960189,0.57849027,2008.3,2007.0,0.54754261]
[1772509960587,0.57849027,2008.1,2007.4,0.54754261]
[1772509963787,0.57849027,2008.3,2007.6,0.54754261]
[1772509967393,0.57849027,2008.3,2007.8,0.54754261]
[1772509973601,0.55247256,2008.5,2007.9,0.5716693]
[1772509973801,0.55247256,2008.5,2007.9,0.5754383]
[1772509979306,0.55247256,2008.5,2008.1,0.5716693]
[1772509979506,0.55694303,2008.6,2008.1,0.5716693]